Cogmind - Beta 9.1 @@@ ROGUE MODE // 2019.10.29 @ 20:50:58 Player: arsonius Result: Destroyed by G-34 Mercenary with Small Laser Performance ------------- Evolutions (1) 500 Regions Visited (3) 600 Robots Destroyed (1) 5 Value Destroyed (6) 6 Prototype IDs (0) 0 Alien Tech Used (0) 0 Bonus (200) 200 TOTAL SCORE: 1311 Bonus ------- Pacifist 200 Cogmind --------- Core Integrity 0/400 Matter 297/300 Energy 100/100 System Corruption 0% Temperature Cool (6) Location -9/Mines Parts ------- Power (1) Propulsion (4) Utility (2) Weapon (2) Inventory (4) Small Storage Unit Light Assault Rifle Light Assault Rifle Peak State ------------ Power Light Ion Engine Propulsion VTOL Module Xenon Bombardment Thruster Utility Improved Sensor Array Shock Absorption System Weapon Light Assault Rifle Inventory Small Storage Unit Light Assault Rifle Light Assault Rifle [Rating: 14] Favorites ----------- Power Ion Engine Engine Ion Engine Propulsion Compact Wheel Wheel Compact Wheel Flight Unit VTOL Module Utility Small Storage Unit Device Improved Sensor Array Storage Small Storage Unit Weapon Light Assault Rifle Ballistic Gun Light Assault Rifle Build | -11 -10 -9 -9 ------- Run | Scr Mat Mat Min Slots Evolved 2 | . . 2 . Power . | . . . . Propulsion 2 | . . 2 . Utility . | . . . . Weapon . | . . . . Parts Attached 12 | 5 1 1 5 Power 3 | 2 . . 1 Engine 3 | 2 . . 1 Core . | . . . . Reactor . | . . . . Propulsion 5 | 2 . . 3 Treads . | . . . . Leg . | . . . . Wheel 2 | 2 . . . Hover . | . . . . Flight 3 | . . . 3 Utility 3 | 1 . 1 1 Device 2 | . . 1 1 Storage 1 | 1 . . . Processor . | . . . . Hackware . | . . . . Protection . | . . . . Artifact . | . . . . Weapon 1 | . 1 . . Energy Gun . | . . . . Energy Cannon . | . . . . Ballistic Gun 1 | . 1 . . Ballistic Cannon . | . . . . Launcher . | . . . . Special Weapon . | . . . . Impact Weapon . | . . . . Slashing Weapon . | . . . . Piercing Weapon . | . . . . Special Melee Weapon . | . . . . Unidentified Prototypes . | . . . . Parts Lost 10 | . 3 . 7 Power 2 | . 1 . 1 Propulsion 5 | . 2 . 3 Utility 2 | . . . 2 Weapon 1 | . . . 1 Highest Loss Streak 6 | . 3 . 6 Average Slot Usage (%) 47 | . 65 27 47 Engine 6 | . 11 . 6 Wheel 7 | . 25 . . Flight 6 | . . . 14 Device 7 | . . 5 14 Storage 8 | . 14 11 3 Ballistic Gun 11 | . 14 11 9 Naked Turns 8 | . . . 8 Heaviest Build 10 | 9 10 6 8 Greatest Support 32 | 32 32 3 12 Greatest Overweight (x) 2 | 2 1 1 1 Average Overweight (x) . | . . 1 . Largest Inventory Capacity 6 | 6 6 6 6 Average Capacity 5 | 5 6 6 4 Most Carried 5 | 5 3 4 4 Average Carried 3 | 3 3 3 3 Final Capacity 6 | 6 6 6 4 Final Carried 4 | 4 3 3 3 Class Distribution -------------------- 100% | Mutant Dominant Class ---------------- Mutant | -10/Materials Mutant | -9/Materials Mutant | -9/Mines Resources | -11 -10 -9 -9 ----------- Run | Scr Mat Mat Min Matter Collected 290 | 250 . . 40 Remotely . | . . . . Salvage Created 82 | . . . 82 Parts 1 | . . . 1 Haulers Intercepted . | . . . . Recyclers Shooed . | . . . . Parts Field Recycled . | . . . . Retrieved Matter . | . . . . Parts Self-Destructed . | . . . . Prevented . | . . . . Kills | -11 -10 -9 -9 ------- Run | Scr Mat Mat Min Combat Hostiles Destroyed . | . . . . Classes Destroyed 1 | . . . 1 Recycler 1 | . . . 1 Best Kill Streak 1 | . . . 1 Combat Bots Only . | . . . . Max Kills in Single Turn 1 | . . . 1 Gunslinging . | . . . . Exploded . | . . . . Melee . | . . . . Uniques/NPCs Destroyed . | . . . . Combat | -11 -10 -9 -9 -------- Run | Scr Mat Mat Min Damage Taken 915 | . 300 45 570 Core 527 | . 118 33 376 Absorbed by Shields . | . . . . Core Remaining (%) 76 | 100 52 . . Volleys Fired 13 | . . . 13 Largest 1 | . . . 1 Hottest 20 | . . . 20 Shots Fired 13 | . . . 13 Gun 13 | . . . 13 Cannon . | . . . . Launcher . | . . . . Special . | . . . . Kinetic 13 | . . . 13 Thermal . | . . . . Explosive . | . . . . Electromagnetic . | . . . . Robot Hit Streak 4 | . . . 4 Robot Miss Streak 2 | . . . 2 Penetration Max . | . . . . Secondary Targets . | . . . . Shots Hit Robots 8 | . . . 8 Core Hits 2 | . . . 2 Critical Hits . | . . . . Critical Kills . | . . . . Critical Parts Destroyed . | . . . . Melee Attacks . | . . . . Impact . | . . . . Slashing . | . . . . Piercing . | . . . . Sneak Attacks . | . . . . Combat Hostiles . | . . . . Follow-up Attacks . | . . . . Damage Inflicted 78 | . . . 78 Guns 78 | . . . 78 Cannons . | . . . . Explosions . | . . . . Melee . | . . . . Ramming . | . . . . Kinetic 78 | . . . 78 Thermal . | . . . . Explosive . | . . . . Electromagnetic . | . . . . Impact . | . . . . Slashing . | . . . . Piercing . | . . . . Highest Corruption . | . . . . Average Corruption . | . . . . Corruption Purged . | . . . . Overload Shots . | . . . . Overflow Damage . | . . . . Projectiles . | . . . . Explosions . | . . . . Melee . | . . . . Knockbacks . | . . . . Impact . | . . . . Kinetic . | . . . . Secondary . | . . . . Self-Inflicted Damage . | . . . . Shots . | . . . . Rammed . | . . . . Targets Rammed . | . . . . Kicked . | . . . . Crushed . | . . . . Highest Temperature . | . . . . Average Temperature . | . . . . Received Heat Transfer 276 | . 138 24 114 Siege Activations . | . . . . Robots Corrupted . | . . . . Combat Hostiles . | . . . . Parts Fried . | . . . . Impact Corruptions . | . . . . Robots Melted . | . . . . Combat Hostiles . | . . . . Parts Melted . | . . . . Heat Transferred . | . . . . Parts Sabotaged . | . . . . Parts Stolen . | . . . . Parts Stripped . | . . . . Power Chain Reactions . | . . . . Missiles Intercepted . | . . . . Alert | -11 -10 -9 -9 ------- Run | Scr Mat Mat Min Peak Influence 53 | . 35 53 20 Average Influence 17 | . 19 28 14 Maximum Alert Level . | . . . . Low Security (%) 100 | . . . . Level 1 . | . . . . Level 2 . | . . . . Level 3 . | . . . . Level 4 . | . . . . Level 5 . | . . . . High Security . | . . . . Max Security . | . . . . Squads Dispatched 4 | . 2 1 1 Investigation 1 | . . . 1 Extermination . | . . . . Reinforcement 3 | . 2 1 . Assault . | . . . . Garrison . | . . . . Intercept . | . . . . Construction Impeded . | . . . . Haulers Reinforced . | . . . . Stealth | -11 -10 -9 -9 --------- Run | Scr Mat Mat Min Distress Signals 1 | . . 1 . Communications Jammed . | . . . . Distress Signals . | . . . . Times Spotted 21 | . 8 6 7 Peak Tracking Total 6 | . 5 5 6 Tactical Retreats 1 | . 1 . . Traps | -11 -10 -9 -9 ------- Run | Scr Mat Mat Min Traps Triggered 1 | . 1 . . Indirectly . | . . . . Trap Hack Attempts . | . . . . Triggered . | . . . . Disarmed . | . . . . Reprogrammed . | . . . . Reused . | . . . . Traps Extracted . | . . . . Installed . | . . . . Triggered . | . . . . Machines | -11 -10 -9 -9 ---------- Run | Scr Mat Mat Min Machines Disabled . | . . . . Max in Single Turn . | . . . . Machines Sabotaged . | . . . . Garrisons Compromised . | . . . . Overloaded Fab Kills . | . . . . Fab Network Shutdowns . | . . . . Hacking | -11 -10 -9 -9 --------- Run | Scr Mat Mat Min Machines Accessed 3 | . 2 . 1 Terminals 1 | . 1 . . Fabricators . | . . . . Repair Stations . | . . . . Recycling Units 1 | . 1 . . Scanalyzers . | . . . . Garrison Access . | . . . . Total Hacks 7 | . 6 . 1 Successful 3 | . 2 . 1 Failed 4 | . 4 . . Catastrophic 1 | . 1 . . Database Lockouts . | . . . . Manual 6 | . 6 . . Terminals 4 | . 4 . . Fabricators . | . . . . Repair Stations . | . . . . Recycling Units 2 | . 2 . . Scanalyzers . | . . . . Garrison Access . | . . . . Terminal Hacks 2 | . 1 . 1 Record 1 | . 1 . . Open Door 1 | . . . 1 Fabricator Hacks . | . . . . Repair Station Hacks . | . . . . Recycling Unit Hacks 1 | . 1 . . Report Inventory 1 | . 1 . . Scanalyzer . | . . . . Garrison Access Hacks . | . . . . Unauthorized Hacks . | . . . . Terminals . | . . . . Fabricators . | . . . . Repair Stations . | . . . . Recycling Units . | . . . . Scanalyzers . | . . . . Garrison Access . | . . . . Data Cores Recovered . | . . . . Used . | . . . . Hacking Detections 2 | . 2 . . Full Trace Events . | . . . . Feedback Events . | . . . . Feedback Blocked . | . . . . Robot Schematics Acquired . | . . . . Robots Built . | . . . . Matter . | . . . . Time . | . . . . Total Robot Build Rating . | . . . . Part Schematics Acquired . | . . . . Parts Built . | . . . . Matter . | . . . . Time . | . . . . Total Part Build Rating . | . . . . Parts Repaired . | . . . . Time . | . . . . Parts Recycled . | . . . . Recycled Matter . | . . . . Retrieved Matter . | . . . . Retrieved Components . | . . . . Parts Scanalyzed . | . . . . Part Schematics Acquired . | . . . . Parts Damaged . | . . . . Bothacking | -11 -10 -9 -9 ------------ Run | Scr Mat Mat Min Used RIF Installer . | . . . . Robots Hacked . | . . . . Non-combat . | . . . . Combat . | . . . . Robot Hacks Applied . | . . . . Relay Couplers Released . | . . . . Robots Rewired . | . . . . Allies Hacked . | . . . . Hacks Repelled . | . . . . Allies | -11 -10 -9 -9 -------- Run | Scr Mat Mat Min Total Allies . | . . . . Largest Group . | . . . . Highest-Rated Group . | . . . . Highest-Rated Ally . | . . . . Total Orders . | . . . . Ally Attacks . | . . . . Total Damage . | . . . . Kills . | . . . . Allies Corrupted . | . . . . Allies Melted . | . . . . Intel | -11 -10 -9 -9 ------- Run | Scr Mat Mat Min Robot Analysis Total . | . . . . Derelict Logs Recovered . | . . . . Drone Launches . | . . . . Drone Recoveries . | . . . . Exploration | -11 -10 -9 -9 ------------- Run | Scr Mat Mat Min Turns Passed 541 | 51 148 134 208 Spaces Moved 505 | 42 148 128 187 Core 200 | 12 1 128 59 Treads . | . . . . Legs . | . . . . Wheels 177 | 30 147 . . Hover . | . . . . Flight 128 | . . . 128 Fastest Speed 37 | 50 100 100 37 Average Speed 83 | 90 100 100 57 Slowest Speed 150 | 150 100 100 100 Overloaded Moves . | . . . . Propulsion Burnouts . | . . . . Robots Hopped 1 | . . . 1 Cave-ins Triggered . | . . . . Exploration Rate (%) 26 | 3 44 17 42 Regions Visited 3 Branch Regions 1 Pre-discovered Areas . | . . . . Known Exits Taken . | . . . . Unknown Exits Taken 3 | 1 1 1 . Scrap Searched 1 | . . . 1 Spaces Dug . | . . . . Terrain Destroyed . | . . . . Melee . | . . . . Projectile . | . . . . AOE . | . . . . Actions | -11 -10 -9 -9 --------- Run | Scr Mat Mat Min Total 613 | 54 148 134 277 Wait 74 | . . 5 69 Move 500 | 41 147 127 185 Hop 1 | . . . 1 Pick Up 12 | 8 . 1 3 Fast Attach 1 | . . . 1 Attach 10 | 4 1 1 4 Detach 1 | . . . 1 Swap 1 | 1 . . . Drop . | . . . . Fire 13 | . . . 13 Melee . | . . . . Ram . | . . . . Kick . | . . . . Crush . | . . . . Escape Stasis . | . . . . Rewire . | . . . . Trap . | . . . . Miscellaneous . | . . . . Route ------- -11/Scrapyard -10/Materials (discovered 2 exits: [*Mat] / [*Min]) -9/Materials -9/Mines (discovered 2 exits: [*Mat x2]) History --------- Turn | Location | Event 20 | -11/Scrapyard | Discovered new exit (range 16) 52 | -11/Scrapyard | Entered Materials 80 | -10/Materials | Discovered new exit (range 15) 189 | -10/Materials | Discovered new exit (range 3) 200 | -10/Materials | Entered another Materials area 200 | -9/Materials | Evolved 2 slots: Propulsion x2 231 | -9/Materials | Lost 3 parts (1p2n) 302 | -9/Materials | Build established: Mutant 315 | -9/Materials | Discovered new exit (range 8) 334 | -9/Materials | Entered Mines 428 | -9/Mines | Discovered new exit (range 6) 432 | -9/Mines | Met a Derelict shopkeep closing up shop 482 | -9/Mines | Discovered new exit (range 6) 533 | -9/Mines | Core integrity fell below 50% 539 | -9/Mines | Core integrity fell below 20% 542 | -9/Mines | Destroyed by G-34 Mercenary with Small Laser Last Messages --------------- 62-NBO(g): "Well, take what you want I guess, I've had enough of this place!" Acquired Shock Absorption System. SHOP.Sys disabled. G-34 Mercenary destroyed. 62-NBO(g) exits level. R-06 Scavenger collects Aluminum Leg. R-06 Scavenger collects Ion Engine. R-06 Scavenger collects Sml. Laser. R-06 Scavenger collects Ion Engine. EXIT=FOUND R-06 Scavenger destroyed. R-06 Scavenger collects Sml. Laser. C-30 ARC bursts open, deploying its payload. S-10 Pest unfolds itself. Lgt. Assault Rifle destroyed. Shock Absorption System destroyed. Imp. Sensor Array destroyed. Lgt. Ion Engine destroyed. Xenon Bombardment Thruster destroyed. VTOL Module destroyed. Map ----- +----------------------------------------------------+ | | | | | | | | | | | | | | | | | ?????????????????????????????????????????????????? | | ?????????????????????????????????????????????????? | | ???????######????????????????????????????????????? | | ??????##""""##???????????????????????????????????? | | ##????#"!!! "#???????????????????????????????????? | | ????#"! ! "#???###?????????????????????????????? | | ???### ]###??# ?????????????????????????????? | | ??## ## ## ##?# #?????????????????????????????? | | #??# ### #?????????????????????????????? | | #??# ## #########?????????????????????? | | #??# % ##????????????????????? | | #??## <% % #????????????????????? | | #???# ### ### ### #????????????????????? | | #### #?## ###?# #?#s ##??????##????????????? | | ##?####???# ###sss##### #????????????? | | ## ##???????# ## r #????????????? | | #### #####???# ## * < #### #????????????? | | #?## #???# ##*% @ #????????????????????? | | #??## #### #???# ###=! #????????????????????? | | #???#####!%! #???# #?#### #????????????????????? | | ##??????# ####???? ?????? #????????????????????? | | ###????# #??????? ?????? #????????????????????? | | ##???# #???????#?????? g#????????????????????? | | ##??# #?????????????? g ????????????????????? | | #### ##### #?????####???????????????????? | | #???????????????????????????? | | #??????????????????????????? | | ######## #?????????????????????????? | | ##????????? #????????????????????????? | | ##????????????? #???????????????????????? | | # ##????????????????? ????????????????????????? | | ## ##???????????????????????????????????????????? | | ?####????????????????????????????????????????????? | | ?????????????????????????????????????????????????? | | ?????????????????????????????????????????????????? | | ?????????????????????????????????????????????????? | | ?????????????????????????????????????????????????? | | ?????????????????????????????????????????????????? | | ##???????????????????????????????????????????????? | | #???????????????????????????????????????????????? | | #???????????????????????????????????????????????? | | #######?????????????????????????????????????????? | +----------------------------------------------------+ Best States ------------- Heat Dissipation 28 Energy Generation 10 Energy Capacity 250 Matter Stores 300 Matter Capacity 300 Sight Range 16 Robot Scan Range 13 Terrain Scan Density 10 Resistance: EX 25 Evasion (%) 62 Item Schematics ----------------- None Robot Schematics ------------------ None Fabricated ------------ Nothing Alien Tech Used ----------------- None Achievements -------------- None Challenges ------------ None Game ------ Seed BottomlessSubatomicRouter Manual? 0 Play Time 00:14:16 Cumulative 12.6 hours Start 2019.10.29 @ 20:10:06 End 2019.10.29 @ 20:50:58 Sessions 1 Manual Loads 0 Difficulty Rogue Special Mode None Game No. 7 Rogue 7 Adventurer 0 Explorer 0 Win Type - Total 0 Types 0/0/0/0/0/0/0 Lore% 5 Gallery% 22 Achievement% 18 Wizard Run 0 Options --------- ASCII 1 Keyboard 0 Movement Numpad Keybinds 0 Fullscreen 1 Font 12/Smallcaps Map View 83x54 Tactical HUD 0 Map Filters NONE Filters NONE Steam 1 RUN: 161542e3-484b-4682-adb7-ce8e6cfafa01